fUSD/lending_fUSD_20260414
["ID","MTS","AMOUNT","RATE_DAILY","PERIOD"]
[420468899,1776117047010,-11545.55,0.0001486,2]
[420468901,1776117047020,-285.62736638,0.00014863,2]
[420468904,1776117047030,-261.59650032,0.00014871,2]
[420468907,1776117047042,-5888.0,0.00014872,2]
[420468910,1776117047058,-1583.03,0.00014898,2]
[420468913,1776117047068,-2200.0,0.000149,5]
[420468916,1776117047087,-2000.0,0.000149,2]
[420468919,1776117047103,-338.67621592,0.00014901,2]
[420468922,1776117047122,-331.04358068,0.00014901,2]
[420468925,1776117047134,-307.09749194,0.00014901,2]
[420468928,1776117047152,-537.6548194,0.00014901,2]
[420468931,1776117047173,-669.73910783,0.00014901,2]
[420468934,1776117047192,-234.01924475,0.00014906,2]
[420468937,1776117047218,-218.95355596,0.00014907,2]
[420468940,1776117047239,-1500.0,0.00014915,2]
[420468943,1776117047258,-1500.0,0.00014915,2]
[420468946,1776117047274,-1500.0,0.00014915,2]
[420468947,1776117047292,-1500.0,0.00014915,2]
[420468951,1776117047303,-1500.0,0.00014915,2]
[420468953,1776117047327,-1500.0,0.00014915,2]
[420468958,1776117047338,-1500.0,0.00014915,2]
[420468961,1776117047352,-1597.911462,0.00014915,2]
[420468962,1776117047374,-150.0,0.00014916,2]
[420468965,1776117047383,-150.0,0.00014932,2]
[420468968,1776117047396,-300.0,0.00014934,2]
[420468972,1776117047415,-300.0,0.00014934,2]
[420468974,1776117047424,-38645.09360481,0.00014935,2]
[420468979,1776117047466,-141379.90338059,0.00014935,2]
[420468981,1776117047475,-1583.03,0.00014935,2]
[420468983,1776117047491,-1583.03,0.00014935,2]
[420468985,1776117047505,-378.97584949,0.00014961,2]
[420468987,1776117047515,-1004.44932301,0.00014968,2]
[420468989,1776117047527,-1600.0,0.00014984,2]
[420468991,1776117047537,-164.78671531,0.00015,2]
[420468993,1776117047549,-265.43,0.00015,2]
[420468995,1776117047559,-685.12,0.00015,2]
[420468998,1776117047571,-192.29,0.00015,2]
[420468999,1776117047585,-8055.32042713,0.00015,2]
[420469001,1776117047597,-1103.0874692,0.00015,2]
[420469003,1776117047606,-500.0,0.00015,2]
[420469005,1776117047627,-1538.0,0.00015,2]
[420469007,1776117047638,-300.0,0.00015,2]
[420469009,1776117047647,-2000.0,0.00015,2]
[420469011,1776117047671,-154.0,0.00015025,2]
[420469013,1776117047681,-1678.58,0.00015054,2]
[420469015,1776117047690,-296.13,0.00015058,2]
[420469017,1776117047699,-173.84,0.00015058,2]
[420469020,1776117047712,-152.3,0.00015058,2]
[420469022,1776117047723,-150.0,0.00015066,2]
[420469023,1776117047733,-986.6,0.00015068,2]
[420469026,1776117047744,-1583.03,0.00015068,2]
[420469028,1776117047753,-2890.41,0.00015068,2]
[420469030,1776117047766,-687.97,0.00015068,2]
[420469032,1776117047777,-1749.40509,0.00015068,2]
[420469034,1776117047788,-1749.40509,0.00015068,2]
[420469036,1776117047798,-1749.40509,0.00015068,2]
[420469038,1776117047813,-1749.40509,0.00015068,2]
[420469040,1776117047822,-1749.40509,0.00015068,2]
[420469042,1776117047838,-1749.40509,0.00015068,2]
[420469044,1776117047855,-1749.40509,0.00015068,2]
[420469046,1776117047865,-1749.40509,0.00015068,2]
[420469048,1776117047882,-1749.40509,0.00015068,2]
[420469050,1776117047896,-800.0,0.00015068,2]
[420469052,1776117047906,-5888.0,0.00015079,2]
[420469055,1776117047916,-150.0,0.00015091,2]
[420469057,1776117047939,-150.0,0.000151,2]
[420469059,1776117047948,-489.01,0.000151,2]
[420469061,1776117047965,-2000.0,0.000151,2]
[420469063,1776117047979,-271.64,0.00015109,2]
[420469065,1776117047991,-150.0,0.00015144,2]
[420469066,1776117048010,-5888.0,0.0001515,2]
[420469069,1776117048025,-477.72,0.00015168,2]
[420469070,1776117048045,-477.72,0.00015168,2]
[420469071,1776117048057,-303.9061,0.000152,2]
[420469072,1776117048085,-195.93286655,0.000152,2]
[420469073,1776117048101,-6112.11371883,0.000152,2]
[420469074,1776117048138,-1619.39606994,0.000152,2]
[420469075,1776117048152,-8005.6477551,0.000152,2]
[420469076,1776117048185,-16732.49166281,0.000152,2]
[420469077,1776117048213,-50533.21053716,0.000152,2]
[420469078,1776117048228,-2000.0,0.000152,2]
[420469079,1776117048241,-5888.0,0.00015202,2]
[420469080,1776117048258,-10000.0,0.00015205,2]
[420469081,1776117048268,-300.0,0.00015242,3]
[420469082,1776117048278,-160.51745018,0.00015258,2]
[420469083,1776117048300,-166.6903506,0.00015273,2]
[420469084,1776117048313,-150.0,0.0001528,2]
[420469085,1776117048322,-405.14244545,0.0001529,2]
[420469086,1776117048340,-405.14244545,0.0001529,2]
[420469088,1776117048354,-1031.69392741,0.00015299,5]
[420469089,1776117048363,-1583.03,0.00015299,2]
[420469091,1776117048381,-1583.03,0.00015299,2]
[420469093,1776117048391,-1583.03,0.00015299,2]
[420469094,1776117048409,-1583.03,0.00015299,2]
[420469095,1776117048425,-1583.03,0.00015299,2]
[420469096,1776117048435,-1583.03,0.00015299,2]
[420469097,1776117048461,-1583.03,0.00015299,2]
[420469098,1776117048471,-1583.03,0.00015299,2]
[420469099,1776117048481,-1583.21,0.00015299,2]
[420469100,1776117048495,-196403.52786194,0.000153,2]
[420469101,1776117048518,-1254.41808677,0.000153,2]
[420469102,1776117048553,-2769.66149264,0.000153,2]
[420469103,1776117048565,-557.92409173,0.000153,2]
[420469104,1776117048596,-2002.76690024,0.000153,2]
[420469105,1776117050105,-282.0,0.00011801,2]
[420469106,1776117050115,-360.74833373,0.0001287,2]
[420469107,1776117050149,-1639.25166627,0.0001287,2]
[420469108,1776117050159,-2000.0,0.0001287,2]
[420469109,1776117050173,-2000.0,0.0001287,2]
[420469110,1776117050182,-2000.0,0.0001287,2]
[420469111,1776117050192,-1978.44118075,0.0001287,2]
[420469112,1776117050659,-21.55881925,0.0001287,2]
[420469113,1776117050675,-2000.0,0.0001287,2]
[420469114,1776117050712,-501.07602886,0.00013791,2]
[420469115,1776117050749,-3776.0,0.00014201,2]
[420469116,1776117050764,-501.07602886,0.00014312,2]
[420469117,1776117050783,-1749.40509,0.00015068,2]
[420469118,1776117050793,-1749.40509,0.00015068,2]
[420469119,1776117050817,-1749.40509,0.00015068,2]
[420469120,1776117050830,-1749.40509,0.00015068,2]
[420469121,1776117050846,-1749.40509,0.00015068,2]
[420469122,1776117050873,-1749.40509,0.00015068,2]
[420469123,1776117050903,-1749.40509,0.00015068,2]
[420469124,1776117050916,-1749.40509,0.00015068,2]
[420469125,1776117050942,-1749.40509,0.00015068,2]
[420469126,1776117050952,-1749.405086,0.00015068,2]
[420469127,1776117050961,-32829.21687161,0.000153,2]
[420469128,1776117050985,-993.80145634,0.000153,2]
[420469129,1776117050996,-500484.28915939,0.000153,2]
[420469130,1776117051672,-843.199996,0.000153,2]
[420469131,1776117051714,-14651.0747665,0.000153,2]
[420469132,1776117051734,-4417.38089554,0.000153,2]
[420469133,1776117060218,361.29306118,0.0001,2]
[420469134,1776117126774,255.0,0.000107,2]
[420469135,1776117152289,-151.0,0.000107,3]
[420469136,1776117152331,-152.0,0.00010735,2]
[420469137,1776117152362,-195.0,0.00011117,2]
[420469138,1776117152395,-500.0,0.00011499,2]
[420469139,1776117152433,-500.0,0.00011499,2]
[420469140,1776117152473,-500.0,0.00011499,2]
[420469141,1776117152510,-360.3730142,0.00011499,2]
[420469142,1776117152547,-500.0,0.00011499,2]
[420469143,1776117152575,-500.0,0.00011499,2]
[420469144,1776117152614,-500.0,0.00011499,2]
[420469145,1776117152651,-500.0,0.00011499,2]
[420469146,1776117152688,-500.0,0.00011499,2]
[420469147,1776117153361,-28.2639716,0.00011499,2]
[420469148,1776117158467,-471.7360284,0.00011499,2]
[420469149,1776117158511,-500.0,0.00011499,2]
[420469150,1776117158554,-500.0,0.00011499,2]
[420469151,1776117158614,-500.0,0.00011499,2]
[420469152,1776117158667,-500.0,0.00011499,2]
[420469153,1776117158755,-500.0,0.00011499,2]
[420469154,1776117158819,-500.0,0.00011499,2]
[420469155,1776117158897,-277.22012015,0.00011499,2]
[420469156,1776117158953,-500.0,0.00011499,2]
[420469157,1776117159086,-500.0,0.00011499,2]
[420469158,1776117159163,-2.0977029,0.00011499,2]
[420469159,1776117159561,-497.9022971,0.00011499,2]
[420469160,1776117164470,-500.0,0.00011499,2]
[420469161,1776117164515,-294.27151014,0.00011499,2]
[420469162,1776117164555,-150.0,0.00011499,2]
[420469163,1776117164594,-500.0,0.00011499,2]
[420469164,1776117164629,-150.0,0.00011499,2]
[420469165,1776117164663,-500.0,0.00011499,2]
[420469166,1776117164709,-150.0,0.00011499,2]
[420469167,1776117164755,-406.90177788,0.00011499,2]
[420469168,1776117164797,-150.0,0.00011499,2]
[420469169,1776117164832,-150.0,0.00011499,2]
[420469170,1776117164867,-172.71610205,0.00011499,2]
[420469171,1776117164906,-500.0,0.00011499,2]
[420469172,1776117164955,-161.79295233,0.00011499,2]
[420469174,1776117341641,212.37876662,0.00011809,30]
[420469175,1776117342893,212.37876662,0.00012615,30]
[420469176,1776117345071,212.37876662,0.00012989,30]
[420469177,1776117345503,212.37876662,0.0001301,30]
[420469178,1776117506393,1005.93694148,0.0001075,30]
[420469179,1776117643662,212.3787666,0.00011,30]
[420469180,1776117746062,-270.42800363,0.000107,2]
[420469181,1776117746110,-9459.15399274,0.000107,2]
[420469182,1776117752151,-10000.01,0.000107,2]
[420469183,1776117754850,315.03499491,0.00010699,2]
[420469184,1776117755235,-10000.01,0.000107,2]
[420469185,1776117755504,-10000.01,0.000107,2]
[420469186,1776117755770,-10000.01,0.000107,2]
[420469187,1776117761204,-10000.01,0.000107,2]
[420469188,1776117761420,-10000.01,0.000107,2]
[420469189,1776117761520,-10000.01,0.000107,2]
[420469190,1776117781595,300.0,0.00010699,2]
[420469191,1776117782577,150.0,0.00010699,2]
[420469192,1776117782759,170.90501259,0.00010593,2]
[420469193,1776117782845,256.35751889,0.00010647,14]
[420469194,1776117784074,300.0,0.000165,30]
[420469195,1776117795763,300.0,0.00010699,2]
[420469196,1776117841159,300.0,0.00010699,2]
[420469197,1776117842836,155.03,9.431e-05,2]
[420469198,1776117848977,1200.0,0.00010699,2]
[420469199,1776117854371,153.0,0.000107,2]
[420469200,1776117862664,500.0,0.00010699,2]
[420469201,1776117896721,-14656.0,0.000107,2]
[420469202,1776117901064,1200.0,0.00010699,2]
[420469203,1776117901414,300.0,0.00010699,2]
[420469204,1776117922874,1000.0,4.5e-05,120]
[420469205,1776117961912,150.0,0.00010699,2]
[420469206,1776117962925,300.0,0.00010699,2]
[420469207,1776118031336,500.0,0.00010694,2]
[420469208,1776118031492,151.0,0.00010694,2]
[420469209,1776118031738,200.0,0.00010694,2]
[420469210,1776118033289,500.0,0.00010694,2]
[420469211,1776118033358,151.0,0.00010694,2]
[420469212,1776118033670,500.0,0.00010694,2]
[420469213,1776118033769,151.0,0.00010694,2]
[420469214,1776118033953,500.0,0.00010694,2]
[420469215,1776118034071,151.0,0.00010694,2]
[420469216,1776118034306,500.0,0.00010694,2]
[420469217,1776118034376,151.0,0.00010694,2]
[420469218,1776118034507,500.0,0.00010694,2]
[420469219,1776118034780,151.0,0.00010694,2]
[420469220,1776118035107,500.0,0.00010694,2]
[420469221,1776118035409,151.0,0.00010694,2]
[420469222,1776118035723,243.01,0.00010694,2]
[420469223,1776118035755,256.99,0.00010694,2]
[420469224,1776118036010,151.0,0.00010694,2]
[420469225,1776118036381,500.0,0.00010694,2]
[420469226,1776118036627,151.0,0.00010694,2]
[420469227,1776118036934,500.0,0.00010694,2]
[420469228,1776118038007,151.0,0.00010694,2]
[420469229,1776118038140,500.0,0.00010694,2]
[420469230,1776118038395,151.0,0.00010694,2]
[420469231,1776118048173,500.0,0.00010694,2]
[420469232,1776118048661,500.0,0.00010694,2]
[420469233,1776118049361,500.0,0.00010694,2]
[420469234,1776118049915,500.0,0.00010694,2]
[420469235,1776118050513,500.0,0.00010694,2]
[420469236,1776118051128,139.02,0.00010694,2]
[420469237,1776118051166,120.63677148,0.00010694,2]
[420469238,1776118059818,772.56440195,0.00010694,2]
[420469239,1776118081508,300.0,0.00010699,2]
[420469240,1776118141145,300.0,0.00010699,2]
[420469241,1776118142504,150.0,0.00010699,2]
[420469242,1776118142601,300.0,0.00010699,2]
[420469243,1776118149221,1200.0,0.00010699,2]
[420469244,1776118193751,-5741.98,0.000107,2]
[420469245,1776118196341,-10000.01,0.000107,2]
[420469246,1776118201761,1200.0,0.00010699,2]
[420469247,1776118201803,300.0,0.00010699,2]
[420469253,1776118232170,-7448.0,0.000107,2]
[420469254,1776118232692,-3177.84132518,0.000107,2]
[420469255,1776118232802,-1763.97926805,0.000107,2]
[420469256,1776118232832,-544.02,0.000107,2]
[420469257,1776118232878,-212585.6036753,0.000107,2]
[420469258,1776118232889,-214.28694928,0.000107,2]
[420469259,1776118232918,-214.28694928,0.000107,2]
[420469260,1776118232930,-214.28694928,0.000107,2]
[420469261,1776118232941,-250.0,0.000107,2]
[420469262,1776118232956,-235.0,0.000107,3]
[420469263,1776118232968,-155.0,0.000107,3]
[420469264,1776118232977,-152.0,0.00010735,2]
[420469265,1776118233003,-152.0,0.00010759,2]
[420469266,1776118233013,-152.0,0.00010759,2]
[420469267,1776118233022,-152.0,0.00010759,2]
[420469268,1776118233038,-152.0,0.00010759,2]
[420469269,1776118233051,-565.1069161,0.00011,2]
[420469270,1776118233070,-544.11871299,0.00011199,2]
[420469271,1776118233086,-200.0,0.00011242,2]
[420469272,1776118233095,-151.0,0.00011499,2]
[420469273,1776118233116,-151.0,0.00011499,2]
[420469274,1776118233125,-288.52515996,0.00011499,2]
[420469275,1776118233137,-500.0,0.00011621,2]
[420469276,1776118233147,-150.0,0.00011625,2]
[420469277,1776118233162,-440.38918057,0.0001165,2]
[420469278,1776118233172,-150.0,0.00011676,2]
[420469279,1776118233182,-255.0,0.00011737,2]
[420469280,1776118233193,-420.0,0.00011761,2]
[420469281,1776118233208,-202.0,0.00011761,2]
[420469282,1776118233222,-420.0,0.00011761,2]
[420469283,1776118233243,-1680.0,0.00011769,2]
[420469284,1776118233253,-918.18884584,0.0001177,2]
[420469285,1776118233262,-300.0,0.0001177,2]
[420469286,1776118233309,-250.0,0.0001177,2]
[420469288,1776118233320,-600.0,0.0001177,2]
[420469291,1776118233331,-600.0,0.0001177,2]
[420469294,1776118233366,-600.0,0.0001177,2]
[420469297,1776118233375,-250.0,0.0001177,2]
[420469299,1776118233391,-600.0,0.0001177,2]
[420469301,1776118233406,-600.0,0.0001177,2]
[420469303,1776118233415,-195.0,0.0001177,2]
[420469306,1776118233429,-195.0,0.0001177,2]
[420469307,1776118233447,-195.0,0.0001177,2]
[420469310,1776118233459,-195.0,0.0001177,2]
[420469312,1776118233473,-195.0,0.0001177,2]
[420469313,1776118233493,-193.0,0.0001177,2]
[420469316,1776118233516,-500.22443982,0.00011775,2]
[420469317,1776118233526,-663.50125,0.000118,2]
[420469319,1776118233539,-150.0,0.00011809,2]
[420469322,1776118233551,-1600.0,0.00011896,2]
[420469324,1776118233563,-951.17693861,0.000119,2]
[420469326,1776118233574,-500.0,0.0001195,2]
[420469328,1776118233600,-500.0,0.0001195,2]
[420469330,1776118233610,-159.99468776,0.0001195,2]
[420469332,1776118233619,-160.003998,0.00012,2]
[420469334,1776118233631,-160.00099119,0.00012,2]
[420469336,1776118233653,-500.0,0.00012,2]
[420469338,1776118233664,-150.0,0.000121,2]
[420469340,1776118233677,-1000.0,0.00012135,2]
[420469341,1776118233695,-578.20924308,0.00012264,2]
[420469343,1776118233705,-200.0,0.00012264,2]
[420469346,1776118233718,-1428.38747117,0.00012264,2]
[420469347,1776118233736,-500.0,0.00012264,2]
[420469349,1776118233747,-793.69878577,0.00012264,2]
[420469351,1776118233757,-721.12765535,0.00012264,2]
[420469353,1776118233773,-209.40437684,0.00012264,2]
[420469355,1776118233785,-151.0,0.00012264,2]
[420469358,1776118233797,-743.50770149,0.00012264,2]
[420469360,1776118233815,-500.0,0.00012264,2]
[420469362,1776118233827,-209.40437684,0.00012264,2]
[420469364,1776118233838,-500.0,0.00012264,2]
[420469366,1776118233857,-500.0,0.00012264,2]
[420469368,1776118233868,-500.0,0.00012264,2]
[420469370,1776118233880,-500.0,0.00012264,2]
[420469372,1776118233899,-500.0,0.00012264,2]
[420469373,1776118233916,-500.0,0.00012264,2]
[420469376,1776118233931,-500.0,0.00012264,2]
[420469378,1776118233942,-174.61919141,0.00012264,2]
[420469380,1776118233956,-500.0,0.00012264,2]
[420469382,1776118233967,-500.0,0.00012264,2]
[420469384,1776118233985,-500.0,0.00012264,2]
[420469385,1776118233999,-1000.0,0.00012266,2]
[420469387,1776118234012,-387.61964999,0.00012274,2]
[420469389,1776118234034,-663.50125,0.00012286,2]
[420469390,1776118234048,-500.0,0.00012314,2]
[420469392,1776118234058,-500.0,0.00012314,2]
[420469394,1776118234082,-500.0,0.00012314,2]
[420469397,1776118234106,-338.20365088,0.00012314,2]
[420469398,1776118234119,-500.0,0.00012314,2]
[420469399,1776118234130,-24762.37,0.00012315,2]
[420469400,1776118234145,-500.0,0.00012319,2]
[420469401,1776118234156,-151.0,0.00012319,2]
[420469402,1776118234165,-500.0,0.00012374,2]
[420469403,1776118234177,-151.0,0.00012374,2]
[420469404,1776118234194,-500.0,0.00012429,2]
[420469405,1776118234204,-151.0,0.00012429,2]
[420469406,1776118234214,-3000.21,0.00012439,2]
[420469407,1776118234230,-500.0,0.00012484,2]
[420469408,1776118234242,-151.0,0.00012484,2]
[420469409,1776118234253,-500.0,0.00012498,2]
[420469410,1776118234265,-235.0,0.00012532,3]
[420469411,1776118234277,-500.0,0.00012539,2]
[420469412,1776118234287,-151.0,0.00012539,2]
[420469413,1776118234297,-500.0,0.00012594,2]
[420469414,1776118234310,-151.0,0.00012594,2]
[420469415,1776118234321,-1721.76654052,0.00012615,2]
[420469416,1776118234330,-500.0,0.00012649,2]
[420469417,1776118234341,-151.0,0.00012649,2]
[420469418,1776118234354,-500.0,0.00012704,2]
[420469419,1776118234364,-151.0,0.00012704,2]
[420469420,1776118234375,-500.0,0.00012759,2]
[420469421,1776118234389,-151.0,0.00012759,2]
[420469422,1776118234399,-663.50125,0.00012771,2]
[420469423,1776118234408,-200.0,0.00012812,2]
[420469424,1776118234419,-1481.23780761,0.00012812,2]
[420469425,1776118234434,-217.15233878,0.00012812,2]
[420469426,1776118234444,-771.01748645,0.00012812,2]
[420469427,1776118234455,-217.15233878,0.00012812,2]
[420469428,1776118234473,-181.08010149,0.00012812,2]
[420469429,1776118234483,-500.0,0.00012814,2]
[420469430,1776118234493,-151.0,0.00012814,2]
[420469431,1776118234505,-699.39,0.00012893,2]
[420469432,1776118234517,-9999.99,0.00012893,2]
[420469433,1776118234527,-150.99,0.00012893,2]
[420469434,1776118234540,-4999.99,0.00012893,2]
[420469435,1776118234550,-197.0,0.00012928,2]
[420469436,1776118234563,-962.4565,0.00012932,2]
[420469437,1776118234573,-2351.0,0.00012946,2]
[420469438,1776118234587,-283.21869434,0.00013024,2]
[420469439,1776118234598,-663.50125,0.00013257,2]
[420469440,1776118234611,-189.7689,0.000133,2]
[420469441,1776118234628,-200.0,0.0001336,2]
[420469442,1776118234641,-1536.04360649,0.0001336,2]
[420469443,1776118234654,-225.18697532,0.0001336,2]
[420469444,1776118234672,-546.84632433,0.0001336,2]
[420469445,1776118234682,-225.18697532,0.0001336,2]
[420469446,1776118234695,-187.78006525,0.0001336,2]
[420469447,1776118234713,-1600.0,0.00013383,2]
[420469448,1776118234724,-1500.0,0.00013416,2]
[420469449,1776118234742,-260.51,0.00013416,2]
[420469450,1776118234760,-506.0,0.000135,2]
[420469451,1776118234770,-500.0,0.00013534,2]
[420469452,1776118234799,-297.17584879,0.00013547,2]
[420469453,1776118234810,-150.0,0.00013586,2]
[420469454,1776118234822,-150.0,0.00013586,2]
[420469455,1776118234841,-3396.18792874,0.000136,2]
[420469456,1776118234852,-155.0,0.000136,3]
[420469457,1776118234865,-500.0,0.00013698,2]
[420469458,1776118234886,-500.0,0.00013698,2]
[420469459,1776118234900,-500.0,0.00013698,2]
[420469460,1776118234916,-239.74,0.00013699,2]
[420469461,1776118234929,-300.0,0.000137,5]
[420469462,1776118234957,-16479.52,0.000137,2]
[420469463,1776118234971,-663.50125,0.00013743,2]
[420469464,1776118234997,-600.0,0.000138,5]
[420469465,1776118235007,-500.0,0.00013884,2]
[420469466,1776118235018,-6054.41164735,0.00013889,2]
[420469467,1776118235050,-500.0,0.00013898,2]
[420469468,1776118235067,-500.0,0.00013898,2]
[420469469,1776118235087,-500.0,0.00013898,2]
[420469470,1776118235097,-500.0,0.00013898,2]
[420469471,1776118235116,-500.0,0.00013898,2]
[420469472,1776118235142,-500.0,0.00013898,2]
[420469473,1776118235161,-500.0,0.00013898,2]
[420469474,1776118235181,-500.0,0.00013898,2]
[420469475,1776118235200,-500.0,0.00013898,2]
[420469476,1776118235217,-523.44111523,0.00013898,2]
[420469477,1776118235229,-500.0,0.00013898,2]
[420469478,1776118235254,-150.0,0.00013898,2]
[420469479,1776118235286,-500.0,0.00013898,2]
[420469480,1776118235332,-500.0,0.00013898,2]
[420469481,1776118235363,-150.0,0.00013898,2]
[420469482,1776118235389,-500.0,0.00013898,2]
[420469483,1776118235411,-500.0,0.00013898,2]
[420469484,1776118235428,-165.55592926,0.00013898,2]
[420469485,1776118235446,-500.0,0.00013898,2]
[420469486,1776118235460,-500.0,0.00013898,2]
[420469487,1776118235475,-500.0,0.00013898,2]
[420469488,1776118235490,-586.60028377,0.00013898,2]
[420469489,1776118235511,-500.0,0.00013898,2]
[420469490,1776118235527,-150.0,0.00013898,2]
[420469491,1776118235550,-500.0,0.00013898,2]
[420469492,1776118235567,-218.16178489,0.00013898,2]
[420469493,1776118235577,-150.0,0.00013898,2]
[420469494,1776118235595,-900.0,0.000139,5]
[420469495,1776118235607,-936.682,0.00013905,2]
[420469496,1776118235617,-1218.0,0.00013905,2]
[420469497,1776118235631,-6026.0,0.00013905,2]
[420469498,1776118235650,-2472.0,0.00013905,2]
[420469499,1776118235660,-1592.87721993,0.00013908,2]
[420469500,1776118235676,-200.0,0.00013908,2]
[420469501,1776118235698,-233.51889341,0.00013908,2]
[420469502,1776118235719,-233.51889341,0.00013908,2]
[420469503,1776118235734,-194.72792766,0.00013908,2]
[420469504,1776118235746,-160.0,0.00013977,2]
[420469505,1776118235768,-168.871136,0.00013977,2]
[420469506,1776118235778,-177.742273,0.00013977,2]
[420469507,1776118235791,-166.226942,0.00013977,2]
[420469508,1776118235810,-7725.52070537,0.00014073,2]
[420469509,1776118235822,-4432.07,0.00014098,2]
[420469510,1776118235849,-359.045,0.00014135,2]
[420469511,1776118235860,-500.0,0.00014161,2]
[420469512,1776118235870,-5000.0,0.00014162,2]
[420469513,1776118235900,-194.9462547,0.00014164,2]
[420469514,1776118235910,-600.50935183,0.00014164,2]
[420469515,1776118235932,-5860.72389924,0.00014164,2]
[420469516,1776118235948,-1446.08821205,0.00014164,2]
[420469517,1776118235958,-5244.80669316,0.0001421,2]
[420469518,1776118235982,-663.50125,0.00014229,2]
[420469519,1776118235993,-3292.0,0.0001424,2]
[420469520,1776118236004,-16479.52,0.00014252,2]
[420469521,1776118236022,-1464.8765341,0.00014261,2]
[420469522,1776118236041,-338.08728666,0.00014261,2]
[420469523,1776118236053,-500.0,0.00014261,2]
[420469524,1776118236071,-500.0,0.00014261,2]
[420469525,1776118236089,-500.0,0.00014261,2]
[420469526,1776118236099,-548.49804464,0.00014261,2]
[420469527,1776118236113,-233.94863125,0.00014261,2]
[420469528,1776118236127,-500.0,0.00014261,2]
[420469529,1776118236142,-195.95352927,0.00014261,2]
[420469530,1776118236158,-500.0,0.00014261,2]
[420469531,1776118236178,-500.0,0.00014261,2]
[420469532,1776118236191,-500.0,0.00014261,2]
[420469533,1776118236205,-500.0,0.00014261,2]
[420469534,1776118236223,-431.53721782,0.00014261,2]
[420469535,1776118236243,-500.0,0.00014261,2]
[420469536,1776118236261,-537.16747049,0.00014261,2]
[420469537,1776118236280,-150.60522261,0.00014261,2]
[420469538,1776118236301,-500.0,0.00014261,2]
[420469539,1776118236318,-500.0,0.00014261,2]
[420469540,1776118236334,-500.0,0.00014261,2]
[420469541,1776118236357,-500.0,0.00014261,2]
[420469542,1776118236367,-454.08,0.00014261,2]
[420469543,1776118236387,-564.0,0.00014262,5]
[420469544,1776118236401,-286046.26937252,0.00014262,2]
[420469545,1776118237948,-2800.70070936,0.00014262,2]
[420469546,1776118237983,-468.75595281,0.00014262,2]
[420469547,1776118237998,-2517.01251569,0.00014262,2]
[420469548,1776118238017,-542.02307539,0.00014262,2]
[420469549,1776118238038,-491.0360497,0.00014262,2]
[420469550,1776118238054,-342.48315084,0.00014262,2]
[420469551,1776118238073,-583.05017344,0.00014262,2]
[420469576,1776118239331,-247.00821085,0.00012264,2]
[420469578,1776118239341,-268.94488825,0.00012264,2]
[420469582,1776118239394,-7.23815922,0.00012264,2]
[420469584,1776118239430,-714.55184078,0.00014262,2]
[420469617,1776118240833,-151.0,0.00013384,2]
[420469618,1776118240845,-1691.7500223,0.00014262,2]
[420469619,1776118240870,-426.08120076,0.00014262,2]
[420469620,1776118240911,-565.30645375,0.00014262,2]
[420469624,1776118243485,-3776.0,0.00014261,2]
[420469625,1776118243524,-3344.62382227,0.00014262,2]
[420469635,1776118246164,-7325.3,0.00014262,2]
[420469642,1776118246957,-456.96597722,0.00014262,2]